bitfinex-derivatives/quotes_ETHF0:USTF0_20250224
["timestamp","ask_amount","ask_price","bid_price","bid_amount"]
[1740429072405,3.2078,2651.8,2651.6,3.222]
[1740429072702,3.96215,2651.8,2651.6,3.222]
[1740429072901,3.2078,2651.8,2651.7,0.75436]
[1740429073204,3.2078,2651.8,2651.6,3.222]
[1740429073205,0.5347,2652.0,2651.6,3.97638]
[1740429073401,0.75434,2651.8,2651.7,0.5574]
[1740429073907,3.7425,2652.0,2651.6,3.222]
[1740429074202,1.28899,2652.0,2651.6,3.97637]
[1740429074607,0.5347,2652.0,2651.7,0.75434]
[1740429075106,1.289,2652.0,2651.6,3.97638]
[1740429075304,1.289,2652.0,2651.6,3.222]
[1740429075606,0.5347,2652.0,2651.7,0.75435]
[1740429075806,0.5347,2652.0,2651.6,3.222]
[1740429076009,1.28899,2652.0,2651.6,3.97639]
[1740429076202,0.5347,2652.0,2651.6,3.97639]
[1740429076505,1.28899,2652.0,2651.6,3.97639]
[1740429076900,0.75431,2651.9,2651.6,3.97639]
[1740429077100,0.5347,2652.0,2651.4,1.1522]
[1740429077404,0.5347,2652.0,2651.6,0.75437]
[1740429077405,4.49679,2652.0,2651.6,0.75437]
[1740429077702,3.7425,2652.0,2651.6,0.75438]
[1740429077906,0.75439,2651.6,2651.5,6.4288]
[1740429078108,3.7425,2652.0,2651.5,3.221]
[1740429078501,3.7425,2652.0,2651.2,3.2078]
[1740429078700,3.7425,2652.0,2651.5,3.221]
[1740429078901,3.2078,2651.7,2651.5,3.221]
[1740429079099,0.5742,2651.6,2651.5,3.221]
[1740429080206,3.2078,2651.7,2651.5,3.221]
[1740429080407,0.5347,2652.0,2651.5,3.221]
[1740429080706,0.5347,2652.0,2651.6,4.3302]
[1740429081403,3.7849,2652.7,2651.6,4.3302]
[1740429081608,3.2078,2652.4,2651.7,0.5448]
[1740429082206,3.2078,2652.4,2651.8,0.00565888]
[1740429082406,3.2078,2652.4,2651.9,3.22]
[1740429083004,3.2078,2652.1,2651.8,0.00565888]
[1740429083207,0.5505,2652.0,2651.8,3.22565888]
[1740429083710,3.2078,2652.1,2651.8,3.22565888]
[1740429084310,3.7583,2652.5,2651.8,3.22565888]
[1740429085812,3.7583,2652.5,2651.9,3.2078]
[1740429086811,3.2078,2653.0,2651.9,3.2078]
[1740429087109,3.2078,2652.7,2651.9,3.2078]
[1740429088100,3.2078,2652.7,2652.0,3.219]
[1740429089510,3.2078,2652.4,2652.0,3.219]
[1740429089711,0.5403,2652.3,2652.0,3.219]
[1740429090109,0.75422,2652.2,2652.0,3.219]
[1740429090615,0.5403,2652.3,2652.0,3.219]
[1740429090818,0.75431,2651.9,2651.8,0.00565888]
[1740429091115,0.75431,2651.9,2651.0,0.556]
[1740429091116,1.88585,2651.8,2651.0,0.556]
[1740429091308,0.75444,2651.5,2651.0,0.556]
[1740429091503,0.75444,2651.5,2651.2,0.7545]
[1740429091711,0.75437,2651.7,2651.3,0.75445]
[1740429091910,3.2078,2651.9,2651.4,3.218]
[1740429092110,0.5871,2652.2,2651.5,3.218]
[1740429092304,0.00565888,2651.9,2651.6,0.5557]
[1740429092503,0.00565888,2651.9,2651.6,1.31008]
[1740429092708,0.00565888,2651.9,2651.6,0.5557]
[1740429093105,3.2078,2651.8,2651.4,0.00565888]
[1740429093912,0.75442,2651.5,2651.4,0.00565888]
[1740429094116,0.75453,2651.1,2651.0,3.218]
[1740429094313,1.88626,2651.3,2650.7,6.4258]
[1740429094514,0.75461,2650.9,2650.7,6.4258]
[1740429094718,0.75468,2650.6,2650.5,0.5557]
[1740429094911,3.2078,2651.2,2650.5,4.52839]
[1740429094912,0.75463,2650.8,2650.5,4.52839]
[1740429095105,0.75463,2650.8,2650.6,3.2078]
[1740429096313,0.75465,2650.7,2650.6,3.2078]
[1740429096514,0.75468,2650.6,2650.5,0.5557]
[1740429096818,0.75464,2650.8,2650.5,3.7737]
[1740429097023,0.75461,2650.9,2650.5,4.52839]
[1740429097319,0.75462,2650.8,2650.5,4.52839]
[1740429097515,0.75462,2650.8,2650.5,3.7737]
[1740429097816,3.2078,2651.2,2650.5,3.7737]
[1740429098113,1.88634,2651.1,2650.5,3.7737]
[1740429098417,0.75463,2650.8,2650.5,3.7737]
[1740429098918,0.75465,2650.7,2650.5,3.7737]
[1740429099319,0.5815,2651.3,2650.5,3.7737]
[1740429099518,1.886,2651.6,2651.0,3.2078]
[1740429099720,0.75449,2651.3,2651.1,3.8024]
[1740429099921,0.75451,2651.2,2651.1,3.8024]
[1740429100523,0.75451,2651.2,2651.1,37.5024]
[1740429101416,0.75451,2651.2,2651.1,3.8024]
[1740429103817,6.98039,2651.2,2650.4,0.59085888]
[1740429104015,0.75471,2650.5,2650.4,0.56945888]
[1740429104321,0.75471,2650.5,2650.4,0.00565888]
[1740429105027,0.75485,2650.0,2649.9,3.7808]
[1740429105929,3.2078,2650.3,2649.9,3.7808]
[1740429106225,0.75485,2650.0,2649.9,3.7808]
[1740429106827,0.75484,2650.1,2649.9,3.7808]
[1740429107031,0.00565888,2650.2,2649.9,3.7808]
[1740429107032,0.76046888,2650.2,2649.9,3.7808]
[1740429107322,0.75482,2650.1,2649.9,3.7808]
[1740429107522,0.00565888,2650.2,2649.9,4.53567]
[1740429107727,0.00565888,2650.2,2649.9,3.7808]
[1740429107920,0.75483,2650.1,2649.9,3.7808]
[1740429108426,0.75482,2650.1,2650.0,3.217]
[1740429111420,0.75485,2650.0,2649.9,0.5638]
[1740429111620,0.00565888,2650.2,2649.9,3.7808]
[1740429112022,0.75482,2650.1,2649.9,3.7808]
[1740429112218,0.75482,2650.1,2650.0,33.7]
[1740429112425,0.00565888,2650.2,2650.0,33.7]
[1740429112624,0.75482,2650.1,2650.0,33.7]
[1740429112819,0.76046888,2650.2,2650.0,33.7]
[1740429113017,0.00565888,2650.2,2650.0,33.7]
[1740429113221,0.76047888,2650.2,2650.0,33.7]
[1740429113430,0.75482,2650.1,2650.0,33.7]
[1740429114527,0.00565888,2650.2,2650.0,33.7]
[1740429115030,0.75482,2650.1,2650.0,33.7]
[1740429115230,0.76045888,2650.2,2650.0,33.7]
[1740429115430,0.00565888,2650.2,2650.0,33.7]
[1740429115729,0.00565888,2650.2,2649.9,4.53566]
[1740429115931,0.00565888,2650.2,2650.0,0.75484]
[1740429116133,0.00565888,2650.2,2649.9,37.4808]
[1740429116524,0.00565888,2650.2,2649.9,38.23566]
[1740429116728,0.76045888,2650.2,2649.9,38.23566]
[1740429117135,0.76045888,2650.2,2649.9,37.4808]
[1740429117436,0.76046888,2650.2,2649.9,38.23566]
[1740429117633,0.76046888,2650.2,2649.9,37.4808]
[1740429118135,0.00565888,2650.2,2649.9,37.4808]
[1740429118437,0.75485,2650.0,2649.9,37.4808]
[1740429119122,0.00565888,2650.2,2649.9,3.7808]
[1740429119327,0.00565888,2650.2,2649.9,0.5638]
[1740429119527,0.00565888,2650.2,2650.0,3.217]
[1740429120425,0.00565888,2650.2,2649.7,3.21345888]
[1740429120622,0.00565888,2650.2,2649.8,3.217]
[1740429121028,0.00565888,2650.2,2649.9,0.5478]
[1740429123428,0.00565888,2650.2,2649.8,3.217]
[1740429124132,0.00565888,2650.2,2649.8,3.8025]
[1740429124429,0.00565888,2650.2,2650.0,3.2078]
[1740429124630,0.00565888,2650.2,2650.1,0.5342]
[1740429124835,3.7751,2651.0,2650.1,1.1225]
[1740429125035,3.7751,2651.0,2650.2,36.916]
[1740429125231,3.2078,2650.3,2649.8,0.5855]
[1740429125431,0.5828,2650.2,2649.7,6.42945888]
[1740429126030,0.58845888,2650.2,2649.7,6.42945888]
[1740429126338,0.00565888,2650.2,2650.0,3.2078]
[1740429126539,3.7906,2651.0,2650.1,4.3441]
[1740429126838,3.7906,2651.0,2650.3,3.2078]
[1740429127039,3.2078,2650.6,2650.4,3.216]
[1740429127236,1.33751,2650.5,2650.4,3.216]
[1740429129932,1.88691,2650.3,2649.8,0.5426]
[1740429130239,1.88691,2650.3,2649.9,3.216]
[1740429130240,0.75487,2650.0,2649.9,3.216]
[1740429130836,0.75487,2650.0,2649.8,0.566]
[1740429130837,0.7549,2649.8,2649.7,0.00565888]
[1740429132632,3.9627,2649.8,2649.7,0.00565888]
[1740429132835,4.5035,2649.8,2649.7,0.00565888]
[1740429133438,0.75505,2649.3,2649.2,3.782]
[1740429134446,3.2078,2649.5,2649.2,3.782]
[1740429134748,0.75492,2649.8,2649.5,0.75497]
[1740429134947,0.75492,2649.8,2649.6,3.215]
[1740429135144,0.75493,2649.7,2649.6,3.215]
[1740429136144,3.96273,2649.7,2649.6,3.215]
[1740429137138,3.2078,2649.7,2649.6,3.215]
[1740429137342,3.96273,2649.7,2649.6,3.215]
[1740429138045,0.75502,2649.4,2649.3,3.215]
[1740429139347,3.2078,2649.7,2649.4,0.75499]
[1740429139642,3.2078,2649.7,2649.3,3.215]
[1740429139941,2.26502,2650.2,2649.8,0.7549]
[1740429139942,0.7548,2650.2,2649.8,0.7549]
[1740429140146,0.5349,2650.2,2649.9,3.7823]
[1740429140542,0.5349,2650.2,2650.0,33.7]
[1740429140944,0.5349,2650.2,2649.9,3.7823]
[1740429141136,0.5377,2650.4,2649.9,3.7823]
[1740429141342,0.75479,2650.2,2649.9,3.7823]
[1740429141640,0.5696,2650.3,2649.9,37.4823]
[1740429141846,0.75483,2650.1,2649.9,3.7823]
[1740429142838,0.75481,2650.2,2649.9,4.53717]
[1740429143049,0.75481,2650.2,2649.9,3.7823]
[1740429143845,0.00565888,2650.7,2649.9,6.9901]
[1740429144043,1.8867,2650.6,2649.9,6.9901]
[1740429144246,0.57305888,2650.7,2649.9,6.9901]
[1740429144445,0.57305888,2650.7,2650.2,3.2078]
[1740429144742,1.32772888,2650.7,2650.3,3.96975]
[1740429144938,0.00565888,2650.7,2650.3,3.7849]
[1740429145138,0.00565888,2650.7,2650.5,0.75468]
[1740429145339,0.00565888,2650.7,2650.6,0.5583]
[1740429145541,0.00565888,2650.7,2650.6,1.31298]
[1740429145741,0.00565888,2650.7,2650.6,0.5583]
[1740429146047,0.00565888,2650.7,2650.6,1.31298]
[1740429146252,3.7624,2651.4,2650.6,1.31298]
[1740429146550,3.2078,2651.4,2651.2,0.75448]
[1740429146748,0.7544,2651.6,2651.3,3.96948]
[1740429147050,3.2078,2651.9,2651.6,0.75437]
[1740429147241,3.2078,2651.9,2651.7,3.214]
[1740429147242,3.96212,2651.9,2651.7,3.214]
[1740429147444,3.2078,2651.9,2651.7,3.214]
[1740429147647,3.2078,2651.9,2651.5,3.2078]
[1740429147847,3.2078,2651.9,2651.6,3.214]
[1740429148043,0.75436,2651.7,2651.6,3.214]
[1740429148544,0.75442,2651.5,2651.0,3.2078]
[1740429148846,0.75441,2651.6,2651.2,0.7545]
[1740429149045,0.75442,2651.6,2651.2,0.7545]
[1740429149252,0.567,2651.8,2651.1,36.914]
[1740429149439,1.32135,2651.8,2651.2,0.5922]
[1740429149645,1.32135,2651.8,2651.4,0.75443]
[1740429149945,0.567,2651.8,2651.5,3.214]
[1740429150149,3.2078,2651.9,2651.7,0.75435]
[1740429150445,0.00565888,2652.0,2651.8,1.34653]
[1740429150646,0.00565888,2652.0,2651.9,3.214]
[1740429151250,0.75993888,2652.0,2651.9,3.214]
[1740429151450,0.00565888,2652.0,2651.9,3.214]
[1740429153552,0.00565888,2652.0,2651.9,3.213]
[1740429154551,0.00565888,2652.0,2651.9,3.96731]
[1740429155448,0.00565888,2652.0,2651.9,3.213]
[1740429155850,0.00565888,2652.0,2651.9,3.96731]
[1740429156453,0.00565888,2652.0,2651.9,3.213]
[1740429156849,0.00565888,2652.0,2651.9,3.96731]
[1740429157252,0.00565888,2652.0,2651.9,3.213]
[1740429157547,0.00565888,2652.0,2651.9,3.96731]
[1740429157754,0.00565888,2652.0,2651.9,3.213]
[1740429158451,0.00565888,2652.0,2651.9,3.96731]
[1740429158848,0.00565888,2652.0,2651.9,7.17511]
[1740429160947,0.00565888,2652.0,2651.9,3.96731]
[1740429162252,0.00565888,2652.0,2651.9,3.213]
[1740429162449,0.00565888,2652.0,2651.9,3.96731]
[1740429162649,0.00565888,2652.0,2651.9,3.213]
[1740429162852,0.00565888,2652.0,2651.9,3.96731]
[1740429163358,0.00565888,2652.0,2651.9,3.213]
[1740429167460,0.00565888,2652.0,2651.9,6.4208]
[1740429175060,0.00565888,2652.0,2651.9,40.1208]
[1740429176452,0.5399,2652.6,2651.9,46.1208]
[1740429176652,0.5399,2652.6,2652.0,3.2078]
[1740429176857,3.2078,2652.5,2652.1,3.208]
[1740429177057,3.2078,2652.5,2651.9,33.7]
[1740429177364,1.0988,2652.6,2652.0,3.208]
[1740429178263,3.2078,2652.5,2652.0,3.208]
[1740429179464,3.2078,2652.5,2652.0,6.4158]
[1740429179656,3.2078,2652.5,2652.0,3.208]
[1740429180561,3.2078,2652.5,2652.0,6.4158]
[1740429181465,0.5399,2652.6,2652.0,6.4158]
[1740429182060,0.5399,2652.6,2652.4,3.2078]
[1740429182266,0.5399,2652.6,2652.5,3.208]
[1740429182460,0.5399,2652.6,2652.5,3.7882]
[1740429182659,3.7938,2653.2,2652.5,3.7882]
[1740429182860,1.0958,2653.1,2652.5,3.7882]
[1740429183664,1.0958,2653.1,2652.7,3.2078]
[1740429184365,1.0958,2653.1,2652.5,0.5802]
[1740429184573,4.3036,2653.1,2652.6,3.207]
[1740429184768,4.8617,2653.1,2652.6,3.207]
[1740429184963,1.0958,2653.1,2652.6,3.207]
[1740429185169,1.84977,2653.1,2652.8,0.75404]
[1740429185467,0.75402,2652.9,2652.7,0.5472]
[1740429185668,1.0958,2653.1,2652.7,0.5472]
[1740429185972,1.0958,2653.1,2652.7,3.755]
[1740429186171,1.0958,2653.1,2652.6,3.207]
[1740429186364,0.75401,2653.0,2652.6,3.207]
[1740429186867,1.0958,2653.1,2652.6,3.207]
[1740429187371,1.84979,2653.1,2652.7,0.75407]
[1740429188070,1.0958,2653.1,2652.6,6.4148]
[1740429188264,1.84979,2653.1,2652.7,0.75406]
[1740429188571,1.0958,2653.1,2652.6,6.4148]
[1740429188765,1.84978,2653.1,2652.8,0.75404]
[1740429188965,1.0958,2653.1,2652.9,3.207]
[1740429189274,7.04456411,2679.9,2652.9,3.207]
[1740429189275,3.2078,2653.5,2652.9,3.207]
[1740429189572,0.5464,2653.5,2653.2,0.75393]
[1740429189769,0.5464,2653.5,2653.3,3.207]
[1740429190070,0.5464,2653.5,2653.4,0.75388]
[1740429190264,0.5464,2653.5,2653.3,3.207]
[1740429190265,3.2078,2654.1,2653.3,3.207]
[1740429190566,0.5642,2654.2,2653.3,3.207]
[1740429190567,0.5464,2654.0,2653.7,3.2078]
[1740429190768,3.2078,2654.4,2653.8,3.206]
[1740429190964,3.2078,2654.4,2653.9,0.75373]
[1740429190965,3.96142,2654.4,2653.9,0.75373]
[1740429191472,3.2078,2654.4,2654.1,0.75367]
[1740429191669,1.1106,2654.6,2654.1,0.75367]
[1740429191670,0.75358,2654.5,2654.2,3.206]
[1740429192165,4.3184,2654.6,2654.2,3.206]
[1740429192567,0.75357,2654.5,2654.2,3.206]
[1740429192763,4.3184,2654.6,2654.2,3.206]
[1740429193169,0.75361,2654.4,2654.2,3.206]
[1740429193364,0.75362,2654.3,2654.2,3.206]
[1740429193574,0.75358,2654.5,2654.2,3.206]
[1740429194071,0.75362,2654.3,2654.2,3.206]
[1740429194271,4.3184,2654.6,2654.2,3.206]
[1740429194468,0.75358,2654.5,2654.2,3.206]
[1740429194670,5.07196,2654.6,2654.3,33.7]
[1740429195070,4.3184,2654.6,2654.3,33.7]
[1740429195368,1.1106,2654.6,2654.3,33.7]
[1740429195674,0.75357,2654.5,2654.4,0.5739]
[1740429195977,0.7536,2654.4,2654.3,33.7]
[1740429196274,0.7536,2654.4,2654.2,3.206]
[1740429196275,0.7536,2654.4,2654.2,3.21165888]
[1740429196775,0.75362,2654.3,2654.2,0.00565888]
[1740429196976,0.75358,2654.5,2654.2,3.21065888]
[1740429197469,0.75358,2654.5,2654.2,3.96429888]
[1740429198167,1.1106,2654.6,2654.2,3.21065888]
[1740429198368,0.5464,2654.6,2654.2,3.21065888]
[1740429198676,3.7431,2654.9,2654.3,3.7735]
[1740429199173,3.7431,2654.9,2654.4,0.75358]
[1740429199174,1.3095,2654.8,2654.4,0.75358]
[1740429199669,1.30951,2654.8,2654.3,3.7735]
[1740429199875,0.556,2654.8,2654.5,0.75355]
[1740429200070,3.2078,2654.9,2654.6,3.204]
[1740429200277,3.2078,2654.9,2654.7,0.5529]
[1740429200475,4.2991,2655.2,2654.7,0.5529]
[1740429200677,4.2991,2655.2,2654.8,0.5422]
[1740429200974,4.2991,2655.2,2654.9,3.204]
[1740429202474,0.556,2655.2,2654.9,3.204]
[1740429202977,0.556,2655.2,2655.0,33.7]
[1740429203175,0.5566,2655.4,2655.0,33.7]
[1740429203378,0.5566,2655.4,2655.0,34.2394]
[1740429203670,1.1006,2655.4,2655.0,34.2394]
[1740429204172,0.544,2655.4,2655.0,34.2394]
[1740429204373,0.5347,2655.9,2655.0,37.4472]
[1740429204570,1.1037,2655.9,2655.0,37.4472]
[1740429205675,1.1037,2655.9,2655.3,3.2078]
[1740429205877,1.1037,2655.9,2655.4,3.203]
[1740429206071,3.2078,2655.7,2655.5,3.203]
[1740429206577,0.569,2655.9,2655.5,3.203]
[1740429206784,0.569,2655.9,2655.6,0.5519]
[1740429207576,0.569,2655.9,2655.6,1.1131]
[1740429207772,0.5347,2656.3,2655.6,4.3209]
[1740429208178,0.75309,2656.2,2655.7,0.00564812]
[1740429208471,0.75312,2656.1,2655.8,0.75319]
[1740429208676,3.2078,2656.5,2655.9,3.202]
[1740429209176,5.09033,2656.5,2655.9,3.95517]
[1740429209378,5.09033,2656.5,2655.9,3.202]
[1740429209379,3.2078,2656.5,2655.9,3.202]
[1740429209578,0.75306,2656.3,2656.0,0.75313]
[1740429209775,1.1119,2656.6,2655.9,6.4098]
[1740429209776,0.75301,2656.5,2656.2,0.75308]
[1740429210082,1.1119,2656.6,2656.3,3.772]
[1740429210278,0.75301,2656.5,2656.3,3.772]
[1740429210479,1.32009,2656.6,2656.4,33.7]
[1740429210679,0.753,2656.5,2656.4,33.7]
[1740429210874,0.5671,2656.6,2656.4,34.45301]
[1740429211081,3.5194,2656.9,2656.4,33.7]
[1740429211382,0.75293,2656.8,2656.5,0.75297]
[1740429211877,0.75298,2656.6,2656.4,34.2696]
[1740429212082,0.753,2656.5,2656.4,34.2696]
[1740429212281,0.753,2656.5,2656.4,33.7]
[1740429212881,0.75298,2656.6,2656.4,34.45303]
[1740429213082,3.7702,2656.9,2656.3,3.772]
[1740429213276,0.75293,2656.8,2656.5,0.75298]
[1740429213475,3.2078,2656.9,2656.4,0.574]
[1740429213799,3.2078,2656.9,2656.7,0.75292]
[1740429213975,3.2078,2656.9,2656.8,3.2]
[1740429214474,3.96069,2656.9,2656.8,3.2]
[1740429214677,0.75289,2656.9,2656.8,3.2]
[1740429216385,0.5701,2657.0,2656.8,3.2]
[1740429216682,3.7783,2657.7,2656.9,3.7592]
[1740429216981,1.1329,2657.6,2656.9,3.7592]
[1740429217180,3.2078,2657.4,2657.0,0.00564812]
[1740429217583,0.75281,2657.2,2657.0,0.00564812]
[1740429217877,3.2078,2657.4,2657.0,0.00564812]
[1740429218280,1.1329,2657.6,2657.0,0.58084812]
[1740429218879,0.5692,2657.6,2657.0,0.58084812]
[1740429220682,0.5692,2657.6,2657.2,3.2078]
[1740429220881,0.5692,2657.6,2657.3,3.199]
[1740429221380,3.2078,2657.4,2657.0,0.58084812]
[1740429221577,3.2078,2657.1,2657.0,0.00564812]
[1740429221882,3.2078,2657.1,2657.0,8.12e-06]
[1740429222083,0.5725,2657.3,2657.0,8.12e-06]
[1740429222378,0.7528,2657.2,2657.1,36.899]
[1740429223078,0.00560413,2657.4,2657.1,36.899]
[1740429223383,0.7528,2657.2,2657.1,36.899]
[1740429224286,0.00560413,2657.4,2657.1,37.65181]
[1740429224479,0.7528,2657.2,2657.1,36.899]
[1740429224983,0.00560413,2657.4,2657.1,36.899]
[1740429225286,0.75836413,2657.4,2657.2,0.75278]
[1740429225477,0.00560413,2657.4,2657.2,0.75279]
[1740429225683,0.00560413,2657.4,2657.3,0.75277]
[1740429225882,0.00560413,2657.4,2657.2,0.75279]
[1740429226085,0.75835413,2657.4,2657.3,0.5564]
[1740429226280,0.75835413,2657.4,2657.3,34.2564]
[1740429227589,0.00560413,2657.4,2657.3,34.2564]
[1740429227887,0.75835413,2657.4,2657.3,34.2564]
[1740429228087,0.00560413,2657.4,2657.3,34.2564]
[1740429228380,0.75835413,2657.4,2657.3,34.2564]
[1740429228585,0.00560413,2657.4,2657.3,34.2564]
[1740429228793,0.00560413,2657.4,2657.3,35.00917]
[1740429229181,0.00560413,2657.4,2657.3,34.2564]
[1740429229780,0.00560413,2657.4,2657.3,37.4534]
[1740429229987,0.00560413,2657.4,2657.3,33.7]
[1740429230186,0.00560413,2657.4,2657.3,36.897]
[1740429232280,0.00560413,2657.4,2657.3,33.7]
[1740429232488,0.00560413,2657.4,2657.3,36.897]
[1740429232682,0.00560413,2657.4,2657.3,33.7]
[1740429240895,0.01162001,2657.4,2657.3,33.7]
[1740429242299,0.5504,2658.1,2657.3,39.7]
[1740429242491,0.5914,2658.3,2657.7,3.2078]
[1740429242692,0.5914,2658.3,2657.8,3.7651]
[1740429242889,3.2078,2658.5,2657.9,34.2473]
[1740429243095,3.2078,2658.5,2658.0,3.2078]
[1740429243397,3.96024,2658.5,2658.0,3.2078]
[1740429243597,3.2078,2658.5,2658.2,0.75251]
[1740429243806,3.96025,2658.5,2658.3,3.94749]
[1740429243999,3.2078,2658.5,2658.3,3.195]
[1740429244195,3.2078,2658.9,2658.3,6.4028]
[1740429244504,1.88065,2659.2,2658.3,6.40844812]
[1740429244505,1.88067,2659.1,2658.3,6.40844812]
[1740429244794,0.75236,2658.8,2658.5,0.75243]
[1740429245505,0.75236,2658.8,2658.4,0.75244]
[1740429245803,0.75236,2658.8,2658.5,0.566]
[1740429246006,0.75236,2658.8,2658.5,1.31843]
[1740429246299,0.7524,2658.7,2658.5,0.566]
[1740429246602,0.75236,2658.8,2658.5,0.566]
[1740429246903,0.75236,2658.8,2658.5,1.31843]
[1740429247491,0.75239,2658.7,2658.5,0.566]
[1740429247691,0.75237,2658.8,2658.5,0.566]
[1740429247999,0.75238,2658.7,2658.5,0.566]
[1740429248196,0.7524,2658.7,2658.5,0.566]
[1740429248396,0.75238,2658.7,2658.6,33.7]
[1740429248597,1.88067,2659.1,2658.6,33.7]
[1740429248800,0.75235,2658.8,2658.7,3.194]
[1740429250800,5.08862,2658.9,2658.3,0.00564812]
[1740429250995,0.75245,2658.5,2658.4,3.193]
[1740429251811,2.98467,2658.7,2658.3,0.00564812]
[1740429251812,0.75246,2658.4,2658.3,0.00564812]
[1740429252002,0.75246,2658.4,2658.3,3.19864812]
[1740429252203,3.2078,2658.6,2658.3,3.19864812]
[1740429252499,1.1037,2658.7,2658.3,3.19864812]
[1740429252705,0.5686,2658.7,2658.3,3.19864812]
[1740429252904,3.2078,2658.9,2658.4,4.8857]
[1740429253208,3.96014,2658.9,2658.7,0.75236]
[1740429253403,3.96012,2658.9,2658.8,3.193]
[1740429254100,3.2078,2658.9,2658.8,3.193]
[1740429254302,3.2078,2658.9,2658.8,3.94535]
[1740429254503,3.2078,2659.5,2658.8,3.193]
[1740429254702,3.2078,2659.5,2658.9,2.44341]
[1740429254908,3.2078,2659.5,2659.4,0.75218]
[1740429255207,3.2078,2659.5,2659.4,3.94518]
[1740429255398,3.2078,2659.5,2659.4,3.193]
[1740429255902,3.2078,2660.0,2659.4,3.193]
[1740429256208,0.75205,2659.9,2659.5,0.75214]
[1740429256414,0.75205,2659.9,2659.6,33.7]
[1740429256704,0.5358,2660.0,2659.6,33.7]
[1740429256902,0.5358,2660.0,2659.6,33.99890676]
[1740429257410,0.5358,2660.0,2659.6,33.7]
[1740429257709,0.5358,2660.0,2659.6,34.45211]
[1740429257905,0.75209,2659.7,2659.6,33.7]
[1740429258106,0.75226,2659.1,2659.0,4.335]
[1740429258305,0.75226,2659.1,2659.0,6.9545]
[1740429258713,0.75226,2659.1,2659.0,3.192]
[1740429259009,3.2078,2659.4,2658.8,20.864]
[1740429259210,0.75232,2658.9,2658.8,20.864]
[1740429259412,0.75232,2659.0,2658.8,20.864]
[1740429259710,0.75232,2658.9,2658.8,20.864]
[1740429259902,1.318,2659.0,2658.8,21.61633]
[1740429260208,0.75232,2658.9,2658.8,20.864]
[1740429260610,0.75232,2658.9,2658.8,54.564]
[1740429260811,0.75229,2659.0,2658.9,0.75231]
[1740429261703,3.2078,2659.1,2659.0,0.75229]
[1740429262315,0.5657,2659.4,2658.9,3.2078]
[1740429262506,0.5657,2659.4,2658.9,5.67569]
[1740429262702,0.5657,2659.4,2658.9,3.7949]
[1740429262907,0.75229,2659.0,2658.9,3.7949]
[1740429263107,0.75229,2659.0,2658.9,0.5871]
[1740429263408,0.5657,2659.4,2658.9,0.5871]
[1740429263610,1.3179,2659.4,2659.3,0.75221]
[1740429263905,3.2078,2659.5,2659.4,0.75218]
[1740429264509,3.2078,2659.5,2659.3,0.5887]
[1740429264709,0.75218,2659.4,2659.3,0.5887]
[1740429265415,3.2078,2659.7,2659.3,0.5887]
[1740429265616,0.75215,2659.6,2659.3,1.3409]
[1740429265814,0.75209,2659.8,2659.5,0.75214]
[1740429266011,0.54,2659.9,2659.6,3.191]
[1740429266210,0.54,2659.9,2659.8,0.75207]
[1740429266420,3.781,2660.4,2659.6,3.191]
[1740429266722,5.66078,2660.4,2659.7,1.31801812]
[1740429266918,5.66078,2660.4,2659.7,0.56594812]
[1740429267116,3.781,2660.4,2659.7,0.56594812]
[1740429267321,0.75198,2660.2,2659.9,0.75202]
[1740429267517,3.781,2660.4,2660.0,3.191]
[1740429267725,0.75194,2660.3,2660.0,3.191]
[1740429267924,0.75194,2660.3,2660.0,3.94299]
[1740429268126,0.75193,2660.3,2660.0,3.191]
[1740429268420,0.75193,2660.3,2660.0,3.943]
[1740429268622,0.75197,2660.2,2660.0,3.191]
[1740429268818,3.2078,2660.4,2660.0,3.7807]
[1740429269015,0.75196,2660.2,2660.0,3.7807]
[1740429269227,0.75198,2660.1,2660.0,37.4807]
[1740429270328,3.2078,2660.4,2660.0,37.4807]
[1740429270526,0.75198,2660.1,2660.0,37.4807]
[1740429270828,3.2078,2660.4,2660.0,38.23269]
[1740429271228,0.75198,2660.1,2660.0,37.4807]
[1740429271418,3.2078,2660.4,2660.0,3.7807]
[1740429271825,3.2078,2660.4,2660.3,0.75193]
[1740429272021,0.5401,2660.8,2660.2,1.87989]
[1740429272236,0.5409,2660.8,2660.3,0.5526]
[1740429272431,1.29271,2660.8,2660.5,0.75186]
[1740429272729,0.5409,2660.8,2660.4,6.3978]
[1740429272919,3.2078,2661.0,2660.4,6.9347]
[1740429273124,0.75174,2661.0,2660.7,0.75179]
[1740429273326,0.5409,2661.1,2660.8,3.189]
[1740429273524,0.75176,2660.9,2660.6,0.75182]
[1740429273725,0.75176,2660.9,2660.7,3.189]
[1740429274118,0.5409,2661.1,2660.7,3.7254]
[1740429274529,0.5409,2661.1,2660.9,0.75174]
[1740429274722,0.5409,2661.1,2660.7,6.9332]
[1740429274926,0.5409,2661.1,2660.9,0.75175]
[1740429275119,3.2078,2661.3,2660.7,8.81272]
[1740429275326,3.2078,2661.3,2660.9,0.75175]
[1740429275630,3.95946,2661.3,2661.0,0.75172]
[1740429275819,0.75167,2661.2,2661.1,3.189]
[1740429276323,3.95946,2661.3,2661.1,3.189]
[1740429276523,3.2078,2661.3,2661.1,3.189]